Cogmind - Beta 11 *** ADVENTURER MODE // 2022.03.24 @ 19:05:53 Player: Zeke Result: Destroyed by D-53 Grenadier with Mini Grenade Launcher Performance ------------- Evolutions (0) 0 Regions Visited (2) 400 Robots Destroyed (24) 120 Value Destroyed (362) 362 Prototype IDs (2) 40 Alien Tech Used (0) 0 Bonus (0) 0 TOTAL SCORE: 922 Bonus ------- None Cogmind --------- Core Integrity 0/250 Matter 300/300 Energy 100/100 System Corruption 16% Temperature Cool (0) Movement Core (100) Ox1 Location -10/Mines Parts ------- > --- POWER (1) -------- (None) > --- PROPULSION (2) --- (None) > --- UTILITY (2) ------ Small Storage Unit > --- WEAPON (2) ------- (None) > --- INVENTORY (8) ---- Sensor Array Experimental Sensor Array Terrain Scanner Terrain Scan Processor Seismic Detector Grenade Launcher Peak State ------------ > --- POWER ------------ Ion Engine > --- PROPULSION ------- Aluminum Leg Aluminum Leg > --- UTILITY ---------- Small Storage Unit Structural Scanner > --- WEAPON ----------- Heavy EM Pulse Gun Heavy EM Pulse Gun > --- INVENTORY -------- Terrain Scanner Terrain Scan Processor EM Pulse Gun Grenade Launcher [Rating: 9] Favorites ----------- Power Ion Engine Engine Ion Engine Propulsion Aluminum Leg Leg Aluminum Leg Utility Small Storage Unit Device Structural Scanner Storage Small Storage Unit Processor Signal Interpreter Weapon Heavy EM Pulse Gun Energy Gun Heavy EM Pulse Gun Ballistic Gun Light Assault Rifle Build | -11 -10 -10 ------- Run | Scr Mat Min Slots Evolved . | . . . Power . | . . . Propulsion . | . . . Utility . | . . . Weapon . | . . . Parts Attached 15 | 5 5 5 Power 1 | 1 . . Engine 1 | 1 . . Core . | . . . Reactor . | . . . Propulsion 4 | 2 . 2 Treads . | . . . Leg 4 | 2 . 2 Wheel . | . . . Hover . | . . . Flight . | . . . Utility 5 | 1 3 1 Device 3 | . 2 1 Storage 1 | 1 . . Processor 1 | . 1 . Hackware . | . . . Protection . | . . . Artifact . | . . . Weapon 5 | 1 2 2 Energy Gun 4 | 1 2 1 Energy Cannon . | . . . Ballistic Gun 1 | . . 1 Ballistic Cannon . | . . . Launcher . | . . . Special Weapon . | . . . Impact Weapon . | . . . Slashing Weapon . | . . . Piercing Weapon . | . . . Special Melee Weapon . | . . . Unidentified Prototypes . | . . . Parts Lost 9 | . . 9 Power 1 | . . 1 Propulsion 3 | . . 3 Utility 2 | . . 2 Weapon 3 | . . 3 Highest Loss Streak 3 | . . 3 To Critical Strikes . | . . . Average Slot Usage (%) 91 | . 96 69 Engine 13 | . 14 9 Leg 27 | . 28 23 Device 8 | . 10 3 Storage 14 | . 14 14 Processor 3 | . 3 4 Energy Gun 22 | . 25 11 Naked Turns . | . . . Heaviest Build 17 | 12 17 16 Greatest Support 20 | 20 20 20 Greatest Overweight (x) 1 | . . 1 Average Overweight (x) . | . . . Largest Inventory Capacity 8 | 8 8 8 Average Capacity 7 | 7 8 8 Most Carried 8 | 4 8 8 Average Carried 6 | . 6 7 Final Capacity 8 | 8 8 8 Final Carried 8 | . 8 6 Class Distribution -------------------- 100% | Mutant Dominant Class ---------------- Mutant | -10/Materials Mutant | -10/Mines Resources | -11 -10 -10 ----------- Run | Scr Mat Min Matter Collected 342 | 185 115 42 Remotely . | . . . Salvage Created 787 | . 757 30 Parts 45 | . 43 2 Haulers Intercepted 1 | . 1 . Recyclers Shooed 1 | . 1 . Parts Field Recycled . | . . . Retrieved Matter . | . . . Parts Self-Destructed . | . . . Prevented . | . . . Kills | -11 -10 -10 ------- Run | Scr Mat Min Combat Hostiles Destroyed 9 | . 9 . Guns 7 | . 7 . AOE 1 | . 1 . Classes Destroyed 8 | . 8 . Worker 4 | . 3 1 Builder 5 | . 5 . Tunneler 1 | . 1 . Hauler 1 | . 1 . Recycler 1 | . 1 . Watcher 3 | . 3 . Swarmer 3 | . 3 . Grunt 6 | . 6 . Best Kill Streak 3 | . 3 1 Combat Bots Only 3 | . 3 . Max Kills in Single Turn 2 | . 2 1 Gunslinging 1 | . 1 . Exploded 1 | . 1 . Melee . | . . . Uniques/NPCs Destroyed . | . . . Combat | -11 -10 -10 -------- Run | Scr Mat Min Damage Taken 908 | . 143 765 Core 256 | . 13 243 Absorbed by Shields . | . . . Core Remaining (%) 100 | 100 . . Volleys Fired 54 | . 49 5 Largest 2 | . 2 2 Hottest 90 | . 90 85 Shots Fired 91 | . 83 8 Gun 91 | . 83 8 Cannon . | . . . Launcher . | . . . Special . | . . . Kinetic 2 | . . 2 Thermal . | . . . Explosive . | . . . Electromagnetic 89 | . 83 6 Robot Hit Streak 13 | . 13 12 Robot Miss Streak 3 | . 3 1 Penetration Max . | . . . Secondary Targets 2 | . 2 . Max Gunslinging Chain 1 | . 1 . Shots Hit Robots 64 | . 59 5 Core Hits 29 | . 24 5 Critical Kills . | . . . Critical Parts Destroyed . | . . . Critical Strikes 2 | . 2 . Corrupt 2 | . 2 . Melee Attacks . | . . . Impact . | . . . Slashing . | . . . Piercing . | . . . Sneak Attacks . | . . . Combat Hostiles . | . . . Follow-up Attacks . | . . . Damage Inflicted 1210 | . 1138 72 Guns 992 | . 942 50 Cannons . | . . . Explosions 196 | . 196 . Melee . | . . . Ramming 22 | . . 22 Kinetic 15 | . . 15 Thermal 196 | . 196 . Explosive . | . . . Electromagnetic 977 | . 942 35 Impact . | . . . Slashing . | . . . Piercing . | . . . Highest Corruption 16 | . . 16 Average Corruption 4 | . . 4 Corruption Purged . | . . . Corruption Blocked . | . . . Effects 5 | . . 5 Matter Fused 3 | . . 3 Heat Flow Errors 1 | . . 1 Data Loss (major) 1 | . . 1 Overload Shots . | . . . Overflow Damage 50 | . 50 . Projectiles . | . . . Explosions 50 | . 50 . Melee . | . . . Knockbacks . | . . . Impact . | . . . Kinetic . | . . . Secondary . | . . . Self-Inflicted Damage 24 | . 24 . Shots 2 | . 2 . Rammed . | . . . Targets Rammed 8 | . . 8 Kicked 8 | . . 8 Crushed . | . . . Highest Temperature 207 | . 207 133 Average Temperature 59 | . 62 37 Received Heat Transfer 83 | . 63 20 Siege Activations . | . . . Robots Corrupted 1 | . 1 . Combat Hostiles 1 | . 1 . Parts Fried 9 | . 9 . Impact Corruptions . | . . . Robots Melted . | . . . Combat Hostiles . | . . . Parts Melted . | . . . Heat Transferred 300 | . 300 . Parts Sabotaged . | . . . Parts Stolen . | . . . Parts Stripped . | . . . Power Chain Reactions 5 | . 5 . Missiles Intercepted . | . . . Alert | -11 -10 -10 ------- Run | Scr Mat Min Peak Influence 236 | . 236 15 Initial . | . . . Average 61 | . 77 1 Maximum Alert Level 1 | . 1 . Low Security (%) 98 | 100 98 100 Level 1 1 | . 1 . Level 2 . | . . . Level 3 . | . . . Level 4 . | . . . Level 5 . | . . . High Security . | . . . Max Security . | . . . Squads Dispatched 1 | . 1 . Investigation 1 | . 1 . Extermination . | . . . Reinforcement . | . . . Assault . | . . . Garrison . | . . . Intercept . | . . . Searches Triggered . | . . . Construction Impeded . | . . . Haulers Reinforced . | . . . Active Scanning Responses . | . . . Cargo Convoy Interrupts . | . . . Stealth | -11 -10 -10 --------- Run | Scr Mat Min Distress Signals 2 | . . 2 Communications Jammed . | . . . Distress Signals . | . . . Times Spotted 32 | . 13 19 Peak Tracking Total 10 | . 3 10 Tactical Retreats 5 | . . 5 Traps | -11 -10 -10 ------- Run | Scr Mat Min Traps Triggered 1 | . 1 . Indirectly . | . . . Trap Hack Attempts . | . . . Triggered . | . . . Disarmed . | . . . Reprogrammed . | . . . Reused . | . . . Traps Extracted . | . . . Installed . | . . . Triggered . | . . . Machines | -11 -10 -10 ---------- Run | Scr Mat Min Machines Disabled 1 | . 1 . Max in Single Turn 1 | . 1 . Machines Sabotaged . | . . . Garrisons Compromised . | . . . Overloaded Fab Kills . | . . . Hacking | -11 -10 -10 --------- Run | Scr Mat Min Machines Accessed 5 | . 5 . Terminals 5 | . 5 . Fabricators . | . . . Repair Stations . | . . . Recycling Units . | . . . Scanalyzers . | . . . Garrison Access . | . . . Total Hacks 12 | . 12 . Successful 5 | . 5 . Failed 7 | . 7 . Catastrophic . | . . . Database Lockouts . | . . . Manual . | . . . Terminals 12 | . 12 . Fabricators . | . . . Repair Stations . | . . . Recycling Units . | . . . Scanalyzers . | . . . Garrison Access . | . . . Terminal Hacks 5 | . 5 . Robot Analysis 1 | . 1 . Prototype ID Bank 1 | . 1 . Emergency Access Points 1 | . 1 . Alert Level 1 | . 1 . Hauler Manifests 1 | . 1 . Fabricator Hacks . | . . . Repair Station Hacks . | . . . Recycling Unit Hacks . | . . . Scanalyzer . | . . . Garrison Access Hacks . | . . . Unauthorized Hacks . | . . . Terminals . | . . . Fabricators . | . . . Repair Stations . | . . . Recycling Units . | . . . Scanalyzers . | . . . Garrison Access . | . . . Data Cores Recovered . | . . . Used . | . . . Hacking Detections 4 | . 4 . Full Trace Events . | . . . Feedback Events . | . . . Feedback Blocked . | . . . Robot Schematics Acquired . | . . . Robots Built . | . . . Authchips . | . . . Time . | . . . Total Robot Build Rating . | . . . Part Schematics Acquired . | . . . Parts Built . | . . . Authchips . | . . . Time . | . . . Total Part Build Rating . | . . . Parts Repaired . | . . . Time . | . . . Parts Recycled . | . . . Recycled Matter . | . . . Retrieved Matter . | . . . Retrieved Components . | . . . Parts Scanalyzed . | . . . Part Schematics Acquired . | . . . Parts Damaged . | . . . Bothacking | -11 -10 -10 ------------ Run | Scr Mat Min Used RIF Installer . | . . . Robots Hacked . | . . . Non-combat . | . . . Combat . | . . . Robot Hacks Applied . | . . . Relay Couplers Released . | . . . Fabnet Peak Effective % . | . . . Robots Rewired . | . . . Allies Hacked . | . . . Hacks Repelled . | . . . Allies | -11 -10 -10 -------- Run | Scr Mat Min Total Allies . | . . . Largest Group . | . . . Highest-Rated Group . | . . . Highest-Rated Ally . | . . . Total Orders . | . . . Ally Attacks . | . . . Total Damage . | . . . Kills . | . . . Allies Corrupted . | . . . Allies Melted . | . . . Intel | -11 -10 -10 ------- Run | Scr Mat Min Robot Analysis Total 1 | . 1 . Derelict Logs Recovered 2 | . . 2 Drone Launches . | . . . Drone Recoveries . | . . . Exploration | -11 -10 -10 ------------- Run | Scr Mat Min Turns Passed 1832 | 59 1445 328 Spaces Moved 1375 | 50 1081 244 Core 44 | 15 . 29 Treads . | . . . Legs 1331 | 35 1081 215 Wheels . | . . . Hover . | . . . Flight . | . . . Fastest Speed 50 | 50 120 100 Average Speed 119 | 99 120 121 Slowest Speed 190 | 120 120 190 Overloaded Moves . | . . . Propulsion Burnouts . | . . . Robots Hopped . | . . . Cave-ins Triggered . | . . . Exploration Rate (%) 51 | 3 100 51 Regions Visited 2 Branch Regions 1 Pre-discovered Areas . | . . . Known Exits Taken 1 | . 1 . Unknown Exits Taken 1 | 1 . . Scrap Searched 1 | . . 1 Spaces Dug . | . . . Terrain Destroyed 14 | . 14 . Melee . | . . . Projectile . | . . . AOE 14 | . 14 . Terrain Rammed . | . . . Walls Destroyed . | . . . Machines Disabled . | . . . Actions | -11 -10 -10 --------- Run | Scr Mat Min Total 1468 | 59 1144 265 Wait . | . . . Move 1373 | 49 1080 244 Hop . | . . . Pick Up 17 | 5 10 2 Fast Attach . | . . . Attach 10 | 5 2 3 Detach . | . . . Swap 5 | . 3 2 Drop 1 | . . 1 Fire 54 | . 49 5 Melee . | . . . Ram . | . . . Kick 8 | . . 8 Crush . | . . . Escape Stasis . | . . . Rewire . | . . . Trap . | . . . Miscellaneous . | . . . Route ------- -11/Scrapyard -10/Materials (discovered 4 exits: *Mat x3 / *Min) -10/Mines History --------- Turn | Location | Event 4 | -11/Scrapyard | Discovered new exit (range 15) 60 | -11/Scrapyard | Entered Materials 305 | -10/Materials | Discovered new exit (range 10) 316 | -10/Materials | Build established: Mutant 445 | -10/Materials | Discovered new exit (range 15) 542 | -10/Materials | Discovered new exit (range 11) 767 | -10/Materials | Discovered new exit (range 16) 1167 | -10/Materials | Identified exit to Materials 1204 | -10/Materials | Identified exit to Mines 1505 | -10/Materials | Entered Mines 1511 | -10/Mines | Learned Materials security intel 1540 | -10/Mines | Found a damaged Exp. Sensor Array with a note attached 1545 | -10/Mines | Found Prototype Device 1567 | -10/Mines | Assembled infested the area 1672 | -10/Mines | Learned Materials trap positions 1674 | -10/Mines | Lost 3 parts (1u2w) 1768 | -10/Mines | Lost 3 parts (1p1n1u) 1791 | -10/Mines | System corruption reached 10% 1797 | -10/Mines | Core integrity fell below 50% 1832 | -10/Mines | Core integrity fell below 20% 1833 | -10/Mines | Destroyed by D-53 Grenadier with Mini Grenade Launcher Last Messages --------------- 01776_ Found 19 Matter. 01782_ Aluminum Leg destroyed. 01782_ System corrupted by crushing effect (+3). 01782_ Knocked back. 01790_ Lgt. Assault Rifle destroyed. 01790_ System corrupted by crushing effect (+4). 01793_ Kicked T-07 Excavator. 01794_ T-07 Excavator distress signal alerts nearby ally. 01794_ Kicked K-01 Serf. 01795_ System corrupted: Matter fused (-7). 01795_ Acquired 5 matter. 01796_ Kicked S-10 Pest. 01800_ Kicked S-10 Pest out of the way. 01803_ Aluminum Leg destroyed. 01803_ System corrupted by crushing effect (+4). 01803_ Knocked back. 01804_ S-10 Pest destroyed. 01811_ as-19361 destroyed. 01819_ System corrupted: Matter fused (-5). 01822_ Acquired 5 matter. Map ----- +----------------------------------------------------+ | ????????????????????????????????????????#####????? | | ???????????????????????????????????????## ##???? | | ???????????????????????????????????????# %%####? | | ??????????????????????????????????????## [%%%%%#? | | ?????????????????????????????????????## ==%##*#? | | ????????????????????????????????????## =%##? #? | | ????????????????????????????????????# ##??? ? | | ????????????????????????????????????# ##???? " | | ????????????????????????????????????# ##??????" | | ????????????????????????????????????# ##???????" | | ????????????????????????????????????# ##????????? | | ????????????????????????????????????# #?????????? | | ?????????????????????????????????#### #?????????? | | ?????????????????????####????????# #?????????? | | ????????????????#?#### ##???##?# #?????????? | | ????????????????#%# % ??? ## ####?????????? | | ??????????????????% ???# ##[]#????????????? | | ??????????????????? d% ! ???# ##% #????????????? | | ???????????????????? #???# ## #????????????? | | ?????????????????????# %% ##??# ## #????????????? | | ?????????????????????# * #??# ## ##???????????? | | ?????????????????????# #### ## %##???????????? | | ??????????????????????# # ## ##???????????? | | ??????????????????????# %% ##???######### | | ??????????????#???????##% ##### ##???######### | | ??????????????# #### !@ ###??##% ##???## | | ?????????????????# #????## ####### ###### | | ?????????????????# #?##### ####### ###### | | ?????????????????######## #######% ## ##???? | | ????????????????????????# #### ##???? | | ????????????????????????# ### %######???# | | ???????????????????????## ## #######???# | | ??????????????????????### # ####??????## | | ?????????????????????### =% ######??????### | | ???????????????????####%! ###!|######???????### | | ???????????????????# ######%###?????????### | | ???????? ??????????# ### ##??###*#???????####### | | ??????"" ??????????# #?# #????##= ??????####### | | ??????"" ???????####%#?# ##########????#### | | ?????? #??????# =#?# #???????### "" | | ?????? #??????# ####?######## ####### ## "" | | ??????# #??????# #???????????# "" | | ??????# #??????# #???????????# ####%##### | | ?????## #??????# #???????????# ####=###### ##### | | ?????? #??????# #??????????? ####%############# | | ??????# #??????# #?????????? ## [ ## | | ??????# #??????# #?????????###### ## | | ??????# #?????## #?????????????## """" """" ## | | ?????## ###??## #?????????????## """" """" ## | | ????## #### #?????????????## """" """" ## | +----------------------------------------------------+ Best States ------------- Heat Dissipation 25 Energy Generation 10 Energy Capacity 250 Matter Stores 300 Matter Capacity 300 Sight Range 16 Robot Scan Range 14 Terrain Scan Density 10 Resistance: KI 20 Resistance: TH 20 Resistance: EX 20 Resistance: EM 20 Resistance: I 20 Resistance: S 20 Resistance: P 20 Evasion (%) 55 Offensive Hacking 10 Item Schematics ----------------- None Robot Schematics ------------------ None Fabricated ------------ Nothing Alien Tech Used ----------------- None Achievements -------------- None Challenges ------------ None Game ------ Seed GodAuthchipBroadsword Manual? 0 Play Time 00:23:41 Cumulative 18.1 hours Start 2022.03.24 @ 18:45:54 End 2022.03.24 @ 19:05:53 Sessions 1 Manual Loads 0 Difficulty Adventurer Special Mode None Game No. 10 Rogue 0 Adventurer 10 Explorer 0 Win Type - Total 0 Types 0/0/0/0/0/0/0/0/0 Lore% 18 Gallery% 16 Achievement% 17 Wizard Run 0 Options --------- ASCII 0 Keyboard 0 Movement Mouse Keybinds 0 Fullscreen 2 Font 24/Smallcaps Map View 76x50 Tactical HUD 1 Map Filters NONE Filters NONE Steam 1 RUN: a38d276d-4187-4bcd-97f1-c42b2fc1b140